[Event "98th Caplin Hastings Masters 2024-25"]
[Site "Hastings"]
[Date "2024.12.28"]
[Round "1.7"]
[White "Ghazarian, Kirk"]
[Black "Bin-Suhayl, Ieysaa"]
[Result "1-0"]
[ECO "C13"]
[WhiteElo "2501"]
[BlackElo "2183"]
[Annotator "TA"]
[PlyCount "95"]
[EventDate "2024.12.23"]
[EventType "swiss"]
[EventCountry "ENG"]
[SourceTitle "playchess.com"]
[Source "ChessBase"]
[SourceQuality "1"]
[TimeControl "5400+30"]

{[%evp 14,95,25,15,15,14,20,12,15,14,14,10,49,36,42,38,43,41,83,75,83,82,104,93,72,32,185,39,114,107,491,484,489,483,825,825,810,800,1250,1228,982,950,843,379,374,378,387,374,397,393,395,406,391,341,395,395,398,369,389,389,743,735,616,580,553,546,1718,1667,29969,29963,29980,29981,29981,29982,29982,29983,29984,29985,29985,29985,29985,29986,29987,29987]} 1. e4 {[%emt 0:00:04]} e6 {[%emt 0:03:04]} 2. d4 {[%emt 0:00:46]} d5 {[%emt 0:00:04]} 3. Nc3 {[%emt 0:00:28]} Nf6 {[%emt 0:00:08]} 4. Bg5 {[%emt 0:00:43]} Be7 {[%emt 0:00:05]} 5. e5 {[%emt 0:00:31]} Nfd7 {[%emt 0:00:06]} 6. h4 {[%emt 0:00:10]} h6 {[%emt 0:00:03]} 7. Bxe7 {[%emt 0:00:30]} Qxe7 {[%emt 0:00:04]} 8. f4 {[%emt 0:00:25]} a6 {[%emt 0:00:24]} 9. Nf3 {[%emt 0:00:41]} c5 {[%emt 0:00:11]} 10. Qd2 {[%emt 0:00:27]} Nc6 {[%emt 0:00:23] The position is equal.} 11. g4 {[%emt 0:00:42]} b5 {[%emt 0:02:08]} 12. Ne2 {[%emt 0:00:54]} f6 {[%emt 0:06:00]} 13. O-O-O {[%emt 0:08:01]} fxe5 {[%emt 0:00:57]} 14. fxe5 {[%emt 0:07:12]} Rf8 {[%emt 0:10:13] Prevents g5} 15. Rh3 {[%emt 0:08:41]} cxd4 {[%emt 0:06:13]} 16. Nexd4 {[%emt 0:10:52]} Ndxe5 {[%emt 0:02:09]} 17. Nxe5 {[%emt 0:05:07]} Nxe5 {[%emt 0:00:34]} 18. Re1 {[%emt 0:03:32] Nf5 is the strong threat.} Nxg4 {[%emt 0:11:43]} 19. Be2 {[%emt 0:06:19]} e5 $2 {[%emt 0:17:34] [#]} (19... Nf6 $14) 20. Rg3 {[%emt 0:14:12]} (20. Nc6 Qd6 21. Bxg4 Bxg4 $11) (20. Bxg4 $1 $18 Bxg4 21. Rg3) 20... Qxh4 {[%emt 0:11:54]} (20... Rf4 $14 21. Bxg4 Rxd4 (21... Bxg4 $2 22. Nc6 $18) 22. Bh5+ Kd8 23. Qxd4 exd4 24. Rxe7 Kxe7) 21. Qc3 {[%emt 0:01:04]} b4 $2 {[%emt 0:19:47][%mdl 8192]} (21... exd4 22. Bxg4+) (21... h5 $16) 22. Qc6+ $18 {[%emt 0:10:44]} (22. Qxb4 $2 Qxg3 23. Nc6 Qf4+ 24. Kb1 Qxb4 25. Nxb4 Nf6 $19) 22... Bd7 {[%emt 0:00:03]} 23. Qg6+ {[%emt 0:04:36]} (23. Qxa8+ Ke7 24. Nc6+ (24. Qxa6 $2 Qxg3 25. Rd1 exd4 $19) 24... Bxc6 25. Qa7+ Kd6 $18) 23... Kd8 {[%emt 0:00:58]} (23... Ke7 $142 24. Bxg4 (24. Rxg4 $2 Qxe1+ 25. Bd1 Rf1 $19) 24... Qg5+ 25. Qxg5+ hxg5 26. Bxd7 (26. Rxe5+ Kd6 $18) 26... Kxd7 27. Rxe5 Rf1+ 28. Kd2 Rg8 29. Rxd5+ (29. Rexg5 Kc7 $18) 29... Kc8 30. Rgxg5 (30. Rdxg5 Rf7 $18) (30. Rc5+ Kb7 $18) 30... g6) 24. Qb6+ {[%emt 0:01:26]} Ke7 {[%emt 0:03:43][%cal Bd8e7,Be7f6,Bf6f7,Bf7g8][%mdl 32] [#]} 25. Qc5+ $1 {[%emt 0:01:33]} Kf6 {[%emt 0:00:48]} 26. Qd6+ {[%emt 0:00:47]} Kf7 {[%emt 0:01:27]} 27. Qxd7+ {[%emt 0:00:20]} Kg8 {[%emt 0:00:04]} 28. Qxg4 {[%emt 0:01:09]} (28. Ne6 $142 {[%csl Ge6][%cal Rd7g7]} Rf7 29. Qxd5 (29. Rxg4 $2 Qxe1+ 30. Bd1 Qe3+ 31. Kb1 Rxd7 $19)) 28... Qxg4 {[%emt 0:00:06]} 29. Rxg4 {[%emt 0:01:19]} (29. Bxg4 exd4 30. Re6 (30. Be6+ Kh7 $18) 30... Rac8 $18) 29... exd4 {[%emt 0:00:06]} 30. Rxd4 {[%emt 0:00:27]} Rae8 {[%emt 0:00:21]} 31. Kd1 {[%emt 0:00:37]} a5 {[%emt 0:00:24]} 32. Rxd5 {[%emt 0:00:17]} Rd8 {[%emt 0:00:02]} 33. Rxd8 {[%emt 0:00:24]} Rxd8+ {[%emt 0:00:05][%mdl 4096] Endgame. KRB-KR} 34. Bd3 {[%emt 0:00:03]} Rd5 {[%emt 0:00:21]} 35. Ke2 {[%emt 0:01:48] aiming for Bc4.} (35. Re8+ Kf7 36. Rh8 h5 $18) 35... Re5+ {[%emt 0:03:43]} 36. Kf2 {[%emt 0:00:02]} Rxe1 {[%emt 0:00:04]} (36... Rg5 37. Re7 h5) 37. Kxe1 {[%emt 0:00:07] KB-KP} Kf7 {[%emt 0:00:04]} 38. Kf2 {[%emt 0:00:08] Threatens to win with c4.} Kf6 {[%emt 0:00:17]} 39. Ke3 {[%emt 0:00:29]} Ke5 {[%emt 0:01:10]} 40. c4 {[%emt 0:02:11]} bxc3 {[%emt 0:00:59]} 41. bxc3 {[%emt 0:00:02][%cal Bb2c3,Bc3c4,Bc4c5][%mdl 32] KB-K3P. White mates.} g5 {[%emt 0:01:15][%cal Bg7g5,Bg5g4,Bg4g3][%mdl 32]} 42. Be2 {[%emt 0:00:23]} Kf5 {[%emt 0:00:02]} 43. c4 {[%emt 0:01:24]} g4 {[%emt 0:00:04]} 44. Kd4 {[%emt 0:01:50]} h5 {[%emt 0:00:24][%cal Bh6h5,Bh5h4][%mdl 32]} 45. c5 {[%emt 0:00:41]} Ke6 {[%emt 0:00:05]} 46. Ke4 {[%emt 0:00:47]} g3 {[%emt 0:00:05]} 47. Bf1 {[%emt 0:00:04]} (47. Bxh5 $2 {loses.} g2 48. Be2 (48. Bg4+ $2 Ke7 $19) 48... g1=Q $19 (48... g1=R 49. Kd4 $15)) 47... h4 {[%emt 0:00:04]} 48. Bh3+ {[%emt 0:00:08] Weighted Error Value: White=0.49/Black=0.46.  Loses game:     	---       	Black=1      Mistake:       	White=1     	Black=4      Inaccurate:     	White=1     	Black=4      OK:         	White=11    	Black=8      Best:        	White=2     	Black=2} 1-0

[Event "98th Caplin Hastings Masters 2024-25"]
[Site "Hastings"]
[Date "2024.12.28"]
[Round "1.8"]
[White "Wall, Tim P"]
[Black "Seo, Jung Min"]
[Result "0-1"]
[ECO "D01"]
[WhiteElo "2173"]
[BlackElo "2491"]
[Annotator "TA"]
[PlyCount "90"]
[EventDate "2024.12.23"]
[EventType "swiss"]
[EventCountry "ENG"]
[SourceTitle "playchess.com"]
[Source "ChessBase"]
[SourceQuality "1"]
[TimeControl "5400+30"]

{[%evp 9,90,-35,-39,-32,-25,-33,-16,-32,-53,-44,-21,-31,-21,-16,0,-37,-36,-36,0,-95,-26,-50,-27,-50,-31,-43,-33,-50,-10,0,0,0,-16,-18,-12,-25,0,0,63,70,56,66,73,0,29,31,30,0,0,0,0,0,14,0,-15,-14,0,0,0,0,0,0,0,-5,0,0,0,-41,-41,-41,-41,-137,-137,-136,-138,-129,-143,-128,-128,-128,-147,-1573,-1526]} 1. d4 {[%emt 0:00:18]} Nf6 {[%emt 0:00:03]} 2. Nc3 {[%emt 0:00:12]} d5 {[%emt 0:00:00]} 3. Bf4 {[%emt 0:00:00]} a6 {[%emt 0:00:09]} 4. e3 {[%emt 0:01:30]} e6 {[%emt 0:00:56]} 5. h4 {[%emt 0:02:43]} c5 {[%emt 0:02:06]} 6. Nf3 {[%emt 0:01:57]} Nc6 {[%emt 0:02:42]} 7. a3 {[%emt 0:09:54]} Bd6 {[%emt 0:06:03]} 8. dxc5 {[%emt 0:08:51]} Bxc5 {[%emt 0:00:05]} 9. Bd3 {[%emt 0:00:48]} h6 {[%emt 0:03:58]} 10. e4 {[%emt 0:10:00]} Ng4 {[%emt 0:03:56]} 11. Bg3 {[%emt 0:04:27]} d4 {[%emt 0:11:02]} 12. Ne2 {[%emt 0:09:51]} (12. Nxd4 $5 Nxf2 13. Bxf2 Bxd4 14. Qd2 $11) 12... e5 {[%emt 0:00:57]} 13. Bc4 {[%emt 0:06:51]} Qe7 {[%emt 0:02:38]} 14. h5 {[%emt 0:01:16]} (14. O-O $11) 14... Bd7 {[%emt 0:04:51]} (14... O-O $17) 15. Nc1 {[%emt 0:11:53]} Nf6 {[%emt 0:05:10]} 16. Bh4 {[%emt 0:00:46]} Qd6 {[%emt 0:03:01]} 17. Nd2 {[%emt 0:03:39]} b5 {[%emt 0:01:11]} 18. Ba2 {[%emt 0:01:00]} Bg4 {[%emt 0:09:19]} 19. f3 {[%emt 0:00:24]} Bd7 {[%emt 0:00:03]} (19... Bxh5 $2 20. Bxf6 Qxf6 21. Rxh5 $18) 20. g4 {[%emt 0:01:04]} Nh7 {[%emt 0:00:42]} 21. Nd3 {[%emt 0:00:49]} Bb6 {[%emt 0:01:47]} 22. Qe2 {[%emt 0:04:03][%cal Of3f4]} Bd8 {[%emt 0:01:45]} 23. Bg3 {[%emt 0:00:40]} Bg5 {[%emt 0:02:05]} ({Black should try} 23... Be6 $11) 24. Bd5 $1 $14 {[%emt 0:04:28]} f6 {[%emt 0:00:17]} 25. a4 {[%emt 0:01:08] Black must now prevent axb5.} Ke7 {[%emt 0:00:31][%cal Oc6b4]} 26. Kf1 {[%emt 0:03:16]} (26. O-O $16) 26... Be6 {[%emt 0:09:54]} 27. Bxe6 {[%emt 0:01:04]} Qxe6 {[%emt 0:01:04]} 28. axb5 {[%emt 0:01:01]} axb5 {[%emt 0:00:05]} 29. Kg2 {[%emt 0:00:06]} Bxd2 {[%emt 0:00:31]} 30. Qxd2 {[%emt 0:00:05]} Kf7 {[%emt 0:00:35]} 31. b3 {[%emt 0:04:33]} Rhc8 {[%emt 0:00:57]} 32. Rhc1 {[%emt 0:00:42]} (32. Rhb1 Ng5 33. Rc1 Kg8 34. Qd1) 32... Kg8 {[%emt 0:01:37]} (32... Ng5 {is interesting.} 33. Qe1 Ne7 34. Qe2 Kg8) 33. Qe2 {[%emt 0:02:00]} Qe7 {[%emt 0:01:02]} 34. Be1 {[%emt 0:00:15] Against Nb4} Ng5 {[%emt 0:00:13][%cal Bh7g5,Bg5e6,Be6c5][%mdl 32]} 35. Bd2 {[%emt 0:00:18]} Ne6 {[%emt 0:00:13]} 36. Qf1 {[%emt 0:01:39]} Rxa1 {[%emt 0:01:33]} 37. Rxa1 {[%emt 0:00:04]} Nc5 {[%emt 0:01:12]} 38. Nb4 {[%emt 0:00:26]} Nxb4 {[%emt 0:04:19]} 39. Bxb4 {[%emt 0:00:05]} Qb7 {[%emt 0:00:13]} 40. Bxc5 {[%emt 0:02:50]} (40. Qd1 $15) 40... Rxc5 $15 {[%emt 0:00:05] KQR-KQR} 41. Ra2 {[%emt 0:00:05]} Qc6 {[%emt 0:00:07]} 42. Qd1 {[%emt 0:01:43]} b4 {[%emt 0:00:30]} 43. Kg3 {[%emt 0:00:16]} Rc3 {[%emt 0:00:24]} 44. Qe2 {[%emt 0:00:25]} Kh7 {[%emt 0:00:14] and ...Re3 would now be decisive Black is more active.} 45. Qd1 $2 {[%emt 0:00:42][%mdl 8192]} (45. Kg2 $17) 45... Qxe4 {[%emt 0:00:16]} 0-1

[Event "98th Caplin Hastings Masters 2024-25"]
[Site "Hastings"]
[Date "2024.12.28"]
[Round "1.9"]
[White "Bazakutsa, Svyatoslav"]
[Black "Chandler, Cliff R"]
[Result "0-1"]
[ECO "A25"]
[WhiteElo "2484"]
[BlackElo "2161"]
[Annotator "TA"]
[PlyCount "88"]
[EventDate "2024.12.23"]
[EventType "swiss"]
[EventCountry "ENG"]
[SourceTitle "playchess.com"]
[Source "ChessBase"]
[SourceQuality "1"]
[TimeControl "5400+30"]

{[%evp 9,88,14,72,39,32,42,32,38,68,66,78,43,41,53,37,29,49,46,47,44,60,47,49,31,45,15,30,27,44,33,47,47,70,7,10,10,14,15,47,0,0,-50,-48,-88,-81,-83,-87,-97,140,141,177,116,105,108,102,60,57,11,81,37,113,58,60,56,64,0,0,-169,-175,-667,-648,-646,-640,-1026,-1006,-29982,-29983,-29983,-29984,-29984,-29985]} 1. c4 {[%emt 0:00:04]} Nc6 {[%emt 0:00:16]} 2. Nc3 {[%emt 0:00:33]} e5 {[%emt 0:00:10]} 3. g3 {[%emt 0:00:15]} Nf6 {[%emt 0:00:40]} 4. Bg2 {[%emt 0:00:10]} Bc5 {[%emt 0:00:24]} 5. Nf3 {[%emt 0:09:25]} e4 {[%emt 0:04:27]} (5... O-O $11) 6. Ng5 {[%emt 0:04:24]} Bxf2+ $1 {[%emt 0:02:23]} 7. Kxf2 {[%emt 0:00:08]} Ng4+ {[%emt 0:00:22]} 8. Kg1 $1 {[%emt 0:00:56] White is slightly better.} Qxg5 {[%emt 0:00:13]} 9. Nxe4 {[%emt 0:00:24]} Qe7 {[%emt 0:07:29]} 10. h3 {[%emt 0:08:21]} Nf6 {[%emt 0:01:19]} 11. Nxf6+ {[%emt 0:00:41]} Qxf6 {[%emt 0:00:08]} 12. d3 {[%emt 0:00:54]} h5 {[%emt 0:07:02]} 13. Qf1 {[%emt 0:06:25]} Qxf1+ {[%emt 0:01:27]} 14. Kxf1 {[%emt 0:00:13]} d6 {[%emt 0:02:25]} 15. Kf2 {[%emt 0:06:56]} Bd7 {[%emt 0:15:43]} 16. Bd2 {[%emt 0:05:58]} O-O-O {[%emt 0:06:42]} 17. b4 {[%emt 0:10:50]} h4 {[%emt 0:01:22]} 18. g4 {[%emt 0:02:56]} f5 {[%emt 0:06:57]} 19. gxf5 {[%emt 0:08:55]} Bxf5 {[%emt 0:01:45]} 20. Raf1 {[%emt 0:00:17]} Be6 {[%emt 0:03:54]} 21. b5 {[%emt 0:06:52]} (21. Ke1 $14) 21... Nd4 $11 {[%emt 0:03:07]} 22. e4 {[%emt 0:09:47]} c5 {[%emt 0:05:44]} 23. bxc6 {[%emt 0:03:56]} Nxc6 {[%emt 0:01:52]} (23... Rdf8+ {looks sharper.} 24. Ke3 Nc2+ 25. Ke2 Nd4+) 24. Be3 {[%emt 0:05:14]} (24. Ke3 $14) 24... Rh5 {[%emt 0:02:37]} 25. Rb1 {[%emt 0:03:19]} (25. a4 $11) 25... Ra5 $15 {[%emt 0:01:54]} 26. Rb2 {[%emt 0:00:25]} Ne5 {[%emt 0:00:43]} 27. Ke2 {[%emt 0:03:39]} Ra3 {[%emt 0:00:30]} 28. Rd2 {[%emt 0:00:48] [#]} Nxd3 $2 {[%emt 0:01:03] Black is more active.} 29. Rxd3 $16 {[%emt 0:00:07]} Rxa2+ {[%emt 0:04:50]} 30. Bd2 {[%emt 0:00:51]} (30. Rd2 $18) 30... Bxc4 {[%emt 0:01:01]} 31. Rc1 {[%emt 0:00:02]} b5 {[%emt 0:00:15]} 32. Ke1 {[%emt 0:01:22]} Kd7 {[%emt 0:02:43]} 33. Rd4 {[%emt 0:01:00]} (33. Rf3 $14) 33... Ke6 {[%emt 0:00:38]} (33... Rf8 $11 {remains equal.}) 34. Bf3 {[%emt 0:00:30]} Rf8 {[%emt 0:00:25] [#] Prevents Bf4} (34... Ke5 $1 $14 35. Bc3 Kf4) 35. Bg4+ {[%emt 0:00:19] A strong pair of Bishops.} (35. Be2 $1 $16) 35... Ke5 $14 {[%emt 0:00:06][%csl Gc4][%cal Rf8f1]} 36. Rcxc4 $1 {[%emt 0:00:08]} bxc4 {[%emt 0:00:21]} 37. Rxc4 {[%emt 0:00:21]} ({White should play} 37. Bc3 $14 Kf4 38. e5+ (38. Rxc4 Kg3 $16) (38. Rxd6 Rb8 $17) 38... Ke3 39. Rxd6 (39. exd6 $2 Rh2 $19)) 37... Rb8 $11 {[%emt 0:03:17] Strongly threatening ...Rb1+.} 38. Bd1 $2 {[%emt 0:01:11]} (38. Bc3+ $11 Kf4 39. e5+ Ke3 40. Bf5 (40. exd6 {is a self mate.} Rb1+ 41. Bd1 Re2+ 42. Kf1 Rxd1+)) 38... Rb1 $19 {[%emt 0:01:17]} 39. Rc3 $2 {[%emt 0:00:31]} (39. Bc3+ Kf4 (39... Ke6 40. Rb4 $17) 40. Bd2+ Ke5 41. Bc3+ Kf4 (41... Ke6 $2 42. Rb4 $17) 42. Bd2+ Ke5) 39... Raa1 {[%emt 0:00:31]} ({Less strong is} 39... Kxe4 40. Ke2 $11) 40. Ke2 {[%emt 0:00:37]} Rxd1 {[%emt 0:00:08]} 41. Rd3 {[%emt 0:00:05]} Ke6 {[%emt 0:02:45] And now ...Rh1 would win.} 42. Kf3 {[%emt 0:00:06]} Ra2 {[%emt 0:00:19] Black mates.} 43. Ke2 {[%emt 0:00:05] [#]} Rdxd2+ $1 {[%emt 0:00:05]} 44. Rxd2 {[%emt 0:00:04]} Rxd2+ {[%emt 0:00:07] Quite a comeback for Black.   Weighted Error Value: White=0.66/Black=0.22 (precise) .  Loses game:     	White=1     	---        Mistake:       	White=8     	Black=3      Inaccurate:     	White=5     	Black=1      OK:         	White=10    	Black=15     Best:        	White=1     	Black=5      Strong:       	White=2     	Black=1} 0-1

[Event "98th Caplin Hastings Masters 2024-25"]
[Site "Hastings"]
[Date "2024.12.28"]
[Round "1.10"]
[White "Brewer, Callum D"]
[Black "Gasanov, Eldar"]
[Result "0-1"]
[ECO "B22"]
[WhiteElo "2151"]
[BlackElo "2476"]
[Annotator "ChessBase"]
[PlyCount "102"]
[EventDate "2024.12.23"]
[EventType "swiss"]
[EventCountry "ENG"]
[SourceTitle "playchess.com"]
[Source "ChessBase"]
[SourceQuality "1"]
[TimeControl "5400+30"]

1. e4 {[%emt 0:00:19]} c5 {[%emt 0:00:25]} 2. Nf3 {[%emt 0:00:03]} e6 {[%emt 0:00:20]} 3. c3 {[%emt 0:01:21]} d5 {[%emt 0:00:27]} 4. exd5 {[%emt 0:00:37]} Qxd5 {[%emt 0:00:11]} 5. d4 {[%emt 0:01:16]} Nf6 {[%emt 0:00:14]} 6. Na3 {[%emt 0:02:09]} a6 {[%emt 0:00:18]} 7. Nc4 {[%emt 0:03:04]} Nbd7 {[%emt 0:00:20]} 8. Be2 {[%emt 0:04:48]} b5 {[%emt 0:07:10]} 9. Ne3 {[%emt 0:11:53]} Qc6 {[%emt 0:00:54]} 10. Ne5 {[%emt 0:12:24]} Qc7 {[%emt 0:03:09]} 11. Bf3 {[%emt 0:09:20]} Bb7 {[%emt 0:01:21]} 12. Bxb7 {[%emt 0:01:55]} Qxb7 {[%emt 0:00:11]} 13. Qf3 {[%emt 0:00:03]} Rb8 {[%emt 0:09:49]} 14. Qxb7 {[%emt 0:12:23]} Rxb7 {[%emt 0:00:27]} 15. Nf3 {[%emt 0:00:04]} Bd6 {[%emt 0:04:47]} 16. O-O {[%emt 0:03:05]} O-O {[%emt 0:10:33]} 17. Bd2 {[%emt 0:09:04]} Rc8 {[%emt 0:04:16]} 18. dxc5 {[%emt 0:02:39]} Nxc5 {[%emt 0:05:41]} 19. Rad1 {[%emt 0:00:26]} Na4 {[%emt 0:02:53]} 20. b3 {[%emt 0:07:20]} Nb6 {[%emt 0:01:41]} 21. c4 {[%emt 0:00:52]} Bc5 {[%emt 0:11:00]} 22. cxb5 {[%emt 0:02:16]} axb5 {[%emt 0:00:06]} 23. Rc1 {[%emt 0:07:00]} Rbb8 {[%emt 0:09:08]} 24. g3 {[%emt 0:02:43]} Ne4 {[%emt 0:07:24]} 25. Ba5 {[%emt 0:05:23]} Bxe3 {[%emt 0:11:32]} 26. fxe3 {[%emt 0:00:02]} Nd5 {[%emt 0:00:02]} 27. Nd4 {[%emt 0:00:30]} h5 {[%emt 0:03:10]} 28. Rfe1 {[%emt 0:00:51]} b4 {[%emt 0:04:11]} 29. Rc4 {[%emt 0:00:36]} Ra8 {[%emt 0:01:20]} 30. Rec1 {[%emt 0:00:21]} Rxc4 {[%emt 0:00:00]} 31. bxc4 {[%emt 0:00:01]} Rxa5 {[%emt 0:01:06]} 32. cxd5 {[%emt 0:00:02]} Rxd5 {[%emt 0:00:21]} 33. Rc4 {[%emt 0:01:03]} e5 {[%emt 0:01:38]} 34. Nf3 {[%emt 0:01:00]} Nc3 {[%emt 0:00:41]} 35. Rxb4 {[%emt 0:00:30]} Nxa2 {[%emt 0:00:10]} 36. Rc4 {[%emt 0:00:31]} f6 {[%emt 0:00:30]} 37. Kf2 {[%emt 0:00:21]} Rd7 {[%emt 0:00:36]} 38. Ke2 {[%emt 0:00:12]} Rb7 {[%emt 0:00:09]} 39. Kd3 {[%emt 0:00:37]} Kf7 {[%emt 0:00:36]} 40. Ra4 {[%emt 0:00:33]} Rb3+ {[%emt 0:00:45]} 41. Kd2 {[%emt 0:00:49]} Rb2+ {[%emt 0:00:28]} 42. Kd3 {[%emt 0:00:10]} Rb3+ {[%emt 0:00:36]} 43. Kd2 {[%emt 0:00:01]} Nb4 {[%emt 0:00:45]} 44. Ra7+ {[%emt 0:00:23]} Ke6 {[%emt 0:00:15]} 45. Rxg7 {[%emt 0:00:50]} Nd5 {[%emt 0:00:21]} 46. Rh7 {[%emt 0:01:02]} Rxe3 {[%emt 0:00:57]} 47. Ne1 {[%emt 0:00:02]} Rb3 {[%emt 0:00:27]} 48. Rxh5 {[%emt 0:00:24]} e4 {[%emt 0:00:18]} 49. Nc2 {[%emt 0:01:03]} e3+ {[%emt 0:00:34]} 50. Ke2 {[%emt 0:00:28]} Rb2 {[%emt 0:00:22]} 51. Kd1 {[%emt 0:00:39]} Nc3+ {[%emt 0:01:13]} 0-1

[Event "98th Caplin Hastings Masters 2024-25"]
[Site "Hastings"]
[Date "2024.12.28"]
[Round "1.11"]
[White "Kaasen, Tor Fredrik"]
[Black "Briem, Benedikt"]
[Result "1-0"]
[ECO "E01"]
[WhiteElo "2473"]
[BlackElo "2132"]
[Annotator "TA"]
[PlyCount "119"]
[EventDate "2024.12.23"]
[EventType "swiss"]
[EventCountry "ENG"]
[SourceTitle "playchess.com"]
[Source "ChessBase"]
[SourceQuality "1"]
[TimeControl "5400+30"]

{[%evp 15,119,4,16,0,0,0,24,41,38,7,8,9,21,15,2,11,23,0,78,82,92,95,89,96,90,82,78,91,83,80,87,77,81,82,88,85,109,108,120,126,227,226,210,193,200,190,185,197,184,194,177,168,216,204,202,208,332,309,314,268,315,275,324,280,322,298,572,539,610,552,814,312,802,721,668,1008,971,716,742,179,1175,1116,1477,1477,1464,1423,1721,147,2490,2120,2013,1607,5285,5754,3325,29972,4934,4933,4614,4614,29987,29988,29988,29989,29989,29990]} 1. c4 {[%emt 0:01:05]} e6 {[%emt 0:00:10]} 2. g3 {[%emt 0:01:21]} d5 {[%emt 0:00:05]} 3. Bg2 {[%emt 0:00:34]} Nf6 {[%emt 0:00:07]} 4. d4 {[%emt 0:02:40]} Bd6 {[%emt 0:00:19]} 5. Nf3 {[%emt 0:00:49]} O-O {[%emt 0:00:14]} 6. O-O {[%emt 0:01:27]} h6 {[%emt 0:00:04]} 7. Nc3 {[%emt 0:04:46]} Nc6 {[%emt 0:02:32]} 8. c5 {[%emt 0:03:16]} Be7 {[%emt 0:00:21]} 9. a3 {[%emt 0:04:20]} a5 {[%emt 0:01:15]} 10. Bf4 {[%emt 0:05:46]} Nh5 {[%emt 0:16:12]} 11. Be3 {[%emt 0:01:30]} Nf6 {[%emt 0:01:53]} 12. Rb1 {[%emt 0:05:06]} b6 {[%emt 0:04:53]} 13. b4 {[%emt 0:06:19]} axb4 {[%emt 0:00:14]} 14. axb4 {[%emt 0:00:07]} bxc5 {[%emt 0:00:50]} 15. dxc5 {[%emt 0:03:58]} Ng4 $1 {[%emt 0:08:22]} 16. Bd2 {[%emt 0:17:41]} e5 {[%emt 0:12:14]} (16... Nge5 $11) 17. b5 $16 {[%emt 0:00:00]} Na5 {[%emt 0:00:55]} 18. h3 {[%emt 0:02:10]} Nf6 {[%emt 0:01:49]} 19. Nxe5 {[%emt 0:07:43]} Bxc5 {[%emt 0:01:08]} 20. Nxd5 {[%emt 0:03:35]} Nxd5 {[%emt 0:07:08]} 21. Bxa5 {[%emt 0:00:29]} Rxa5 {[%emt 0:00:41]} 22. Nc6 {[%emt 0:05:46]} (22. Bxd5 $2 Qg5 23. Nc6 (23. Ng4 $2 h5 $19) 23... Qxg3+ 24. Bg2 Bxh3 $19) 22... Qg5 {[%emt 0:02:03]} (22... Bxf2+ $2 23. Rxf2 Qe8 24. Qxd5 $18 (24. Nxa5 Nc3 $18) (24. Bxd5 Ra8 $18)) 23. Qxd5 {[%emt 0:00:58]} Qxd5 {[%emt 0:01:22]} 24. Bxd5 {[%emt 0:00:08]} Ra3 {[%emt 0:00:10]} 25. Kg2 {[%emt 0:02:07]} Bb7 {[%emt 0:02:09]} 26. Rbc1 {[%emt 0:05:51]} Bd6 {[%emt 0:01:39]} 27. Rfd1 {[%emt 0:00:12]} Bxc6 {[%emt 0:01:43]} (27... Kh8 $16 28. Rc2 Bc8) 28. Rxc6 $18 {[%emt 0:00:07]} (28. Bxc6 $6 Rb3 29. Rc2 g6) 28... Rb8 {[%emt 0:01:07]} 29. b6 {[%emt 0:02:11]} Rxb6 {[%emt 0:00:51]} 30. Rxb6 {[%emt 0:00:07]} cxb6 {[%emt 0:00:03]} 31. Bxf7+ $1 {[%emt 0:00:08]} Kxf7 {[%emt 0:00:03]} 32. Rxd6 {[%emt 0:00:06]} Rb3 {[%emt 0:00:03]} 33. g4 {[%emt 0:01:16]} b5 {[%emt 0:00:19]} 34. Rb6 {[%emt 0:01:22]} b4 {[%emt 0:00:17] [#]} 35. h4 $1 {[%emt 0:01:49]} Rb1 {[%emt 0:00:50]} (35... Ke8 36. Rb7 Kf8) 36. h5 $18 {[%emt 0:01:24]} Ke7 {[%emt 0:01:07]} 37. Rg6 {[%emt 0:00:49]} Kf7 {[%emt 0:00:49]} 38. Kf3 {[%emt 0:00:15]} Rc1 {[%emt 0:00:37]} 39. Rb6 {[%emt 0:00:28]} Rc3+ {[%emt 0:00:30]} 40. e3 {[%emt 0:02:44]} b3 $2 {[%emt 0:00:13]} (40... Rc4 {was worth a try.} 41. e4 Rc3+ 42. Kf4 b3) 41. Kf4 $18 {[%emt 0:01:15]} Rc2 {[%emt 0:02:06]} 42. f3 {[%emt 0:00:35]} ({Weaker is} 42. Rxb3 Rxf2+ 43. Ke5 Rg2 $11) 42... b2 {[%emt 0:00:05]} 43. e4 {[%emt 0:00:35]} Rf2 {[%emt 0:01:34]} 44. Ke3 {[%emt 0:03:00]} Rg2 {[%emt 0:00:06]} 45. e5 {[%emt 0:00:28]} Ke7 {[%emt 0:03:44]} 46. Ke4 {[%emt 0:00:56]} Rf2 {[%emt 0:03:27]} 47. f4 {[%emt 0:00:18]} Kf7 $2 {[%emt 0:02:15] [#]} (47... Kd7 48. Kf5 Rg2) 48. Rb7+ $1 $18 {[%emt 0:00:35]} Kg8 {[%emt 0:01:01]} 49. Kf5 {[%emt 0:00:41]} Rc2 {[%emt 0:01:08]} 50. e6 {[%emt 0:01:37]} Re2 {[%emt 0:00:17]} 51. Rb8+ {[%emt 0:00:50]} Kh7 {[%emt 0:00:10]} 52. Rb6 {[%emt 0:01:10]} Kg8 {[%emt 0:00:34]} 53. Rb7 {[%emt 0:01:11]} Kh7 {[%emt 0:01:05]} 54. Rb8 {[%emt 0:00:31]} Rf2 {[%emt 0:04:02]} 55. Ke5 {[%emt 0:00:15]} Re2+ {[%emt 0:01:32]} 56. Kd6 {[%emt 0:00:10]} Rd2+ {[%emt 0:00:04]} 57. Ke7 {[%emt 0:00:07]} Rc2 {[%emt 0:00:20]} 58. Kf7 {[%emt 0:00:35]} Rc4 {[%emt 0:01:34]} 59. f5 {[%emt 0:00:07]} Rc6 {[%emt 0:01:04]} 60. Rxb2 {[%emt 0:00:22]} 1-0